[Event "HUN-chT Youth 2019"]
[Site "Budapest"]
[Date "2019.10.26"]
[Round "1.38"]
[White "Foldes, Marton Gabor"]
[Black "Soti, Szabolcs"]
[Result "1-0"]
[ECO "C44"]
[WhiteElo "1755"]
[BlackElo "1346"]
[Annotator "NA"]
[PlyCount "83"]
[EventDate "2019.10.26"]
[EventType "team-tourn"]
[EventCountry "HUN"]
[SourceTitle "playchess.com"]
[Source "ChessBase"]
[SourceQuality "1"]
[TimeControl "5400+30"]

1. e4 {[%emt 0:00:00]} e5 {[%emt 0:00:00]} 2. Nf3 {[%emt 0:00:00]} Nc6 {[%emt 0:00:00]} 3. d4 {[%emt 0:00:00]} exd4 {[%emt 0:01:48]} 4. Bc4 {[%emt 0:00:00]} Bc5 {[%emt 0:01:06]} 5. c3 {[%emt 0:00:02]} dxc3 {[%emt 0:00:45]} 6. Nxc3 {[%emt 0:00:42]} h6 {[%emt 0:01:39]} 7. O-O {[%emt 0:01:24]} Nge7 {[%emt 0:01:46]} 8. a3 {[%emt 0:05:40]} a6 {[%emt 0:05:39]} 9. b4 {[%emt 0:01:11]} Ba7 {[%emt 0:01:14]} 10. Bb2 {[%emt 0:01:17]} b5 {[%emt 0:01:08]} 11. Bb3 {[%emt 0:03:14]} O-O {[%emt 0:00:38]} 12. Ne2 {[%emt 0:07:19]} Ng6 {[%emt 0:03:32]} 13. Rc1 {[%emt 0:06:33]} Bb7 {[%emt 0:09:32]} 14. Ng3 {[%emt 0:06:35]} d6 {[%emt 0:03:07]} 15. Bd5 {[%emt 0:06:08]} Rb8 {[%emt 0:07:39]} 16. Bxc6 {[%emt 0:00:50]} Bxc6 {[%emt 0:00:59]} 17. Rxc6 {[%emt 0:00:21]} Bb6 {[%emt 0:05:19]} 18. Rc1 {[%emt 0:06:11]} a5 {[%emt 0:02:17]} 19. Nf5 {[%emt 0:03:14]} f6 {[%emt 0:01:13]} 20. Qb3+ {[%emt 0:03:10]} Kh7 {[%emt 0:03:14]} 21. N3h4 {[%emt 0:03:39]} Nf4 {[%emt 0:04:26]} 22. Kh1 {[%emt 0:06:09]} Qd7 {[%emt 0:03:42]} 23. Rce1 {[%emt 0:18:57]} Qf7 {[%emt 0:04:30]} 24. Qc2 {[%emt 0:04:00]} axb4 {[%emt 0:05:23]} 25. axb4 {[%emt 0:00:39]} Qc4 {[%emt 0:01:34]} 26. Qd2 {[%emt 0:02:48]} Nd3 {[%emt 0:03:07]} 27. Rd1 {[%emt 0:02:53]} Nxf2+ {[%emt 0:01:23]} 28. Rxf2 {[%emt 0:00:12]} Bxf2 {[%emt 0:00:06]} 29. Qxf2 {[%emt 0:00:05]} Qxb4 {[%emt 0:00:14]} 30. Nd4 {[%emt 0:05:22]} Rbe8 {[%emt 0:01:58]} 31. Ba1 {[%emt 0:01:08]} Rxe4 {[%emt 0:00:51]} 32. Qf5+ {[%emt 0:00:08]} Kh8 {[%emt 0:00:25]} 33. Ng6+ {[%emt 0:01:04]} Kg8 {[%emt 0:00:14]} 34. Qd5+ {[%emt 0:00:17]} Rf7 {[%emt 0:00:42]} 35. Qxe4 {[%emt 0:00:22]} Qa4 {[%emt 0:01:23]} 36. Re1 {[%emt 0:00:42]} c5 {[%emt 0:02:10]} 37. Qe8+ {[%emt 0:00:28]} Rf8 {[%emt 0:00:38]} 38. Qxf8+ {[%emt 0:00:03]} Kh7 {[%emt 0:00:12]} 39. Ne6 {[%emt 0:00:40]} Qa7 {[%emt 0:00:19]} 40. Ne7 {[%emt 0:00:18]} Qxe7 {[%emt 0:00:28]} 41. Qxe7 {[%emt 0:00:08]} Kg6 {[%emt 0:00:10]} 42. Qxg7+ {[%emt 0:00:12]} 1-0

[Event "HUN-chT Youth 2019"]
[Site "Budapest"]
[Date "2019.10.26"]
[Round "1.39"]
[White "Biro, Daniel"]
[Black "Csernyik, Mark"]
[Result "0-1"]
[ECO "D34"]
[WhiteElo "1339"]
[BlackElo "1749"]
[Annotator "NA"]
[PlyCount "92"]
[EventDate "2019.10.26"]
[EventType "team-tourn"]
[EventCountry "HUN"]
[SourceTitle "playchess.com"]
[Source "ChessBase"]
[SourceQuality "1"]
[TimeControl "5400+30"]

1. Nf3 {[%emt 0:00:00]} d5 {[%emt 0:00:00]} 2. d4 {[%emt 0:00:00]} c5 {[%emt 0:00:00]} 3. g3 {[%emt 0:00:00]} Nf6 {[%emt 0:00:22]} 4. Bg2 {[%emt 0:00:00]} e6 {[%emt 0:00:42]} 5. O-O {[%emt 0:00:10]} Nc6 {[%emt 0:00:18]} 6. c4 {[%emt 0:00:39]} Be7 {[%emt 0:00:37]} 7. Nc3 {[%emt 0:00:41]} O-O {[%emt 0:00:31]} 8. cxd5 {[%emt 0:00:15]} exd5 {[%emt 0:00:28]} 9. Ne5 {[%emt 0:00:26]} Nxd4 {[%emt 0:07:44]} 10. e3 {[%emt 0:05:28]} Nc6 {[%emt 0:01:04]} 11. Nxc6 {[%emt 0:00:36]} bxc6 {[%emt 0:00:09]} 12. e4 {[%emt 0:00:57]} d4 {[%emt 0:02:42]} 13. e5 {[%emt 0:05:27]} dxc3 {[%emt 0:01:57]} 14. Qxd8 {[%emt 0:01:47]} Rxd8 {[%emt 0:00:27]} 15. exf6 {[%emt 0:05:38]} Bxf6 {[%emt 0:00:41]} 16. bxc3 {[%emt 0:02:18]} Bxc3 {[%emt 0:00:57]} 17. Rb1 {[%emt 0:00:05]} Ba6 {[%emt 0:01:07]} 18. Bxc6 {[%emt 0:05:21]} Rac8 {[%emt 0:01:23]} 19. Bb5 {[%emt 0:01:59]} Rb8 {[%emt 0:00:29]} 20. a4 {[%emt 0:00:57]} Bxb5 {[%emt 0:01:22]} 21. axb5 {[%emt 0:02:08]} Bb4 {[%emt 0:03:21]} 22. Rb3 {[%emt 0:05:39]} Rxb5 {[%emt 0:00:25]} 23. Ba3 {[%emt 0:00:31]} Rdb8 {[%emt 0:00:35]} 24. Rfb1 {[%emt 0:00:16]} a5 {[%emt 0:00:24]} 25. Bc1 {[%emt 0:02:37]} f6 {[%emt 0:01:14]} 26. R3b2 {[%emt 0:01:21]} Kf7 {[%emt 0:00:50]} 27. Bf4 {[%emt 0:01:21]} R8b7 {[%emt 0:00:54]} 28. Kf1 {[%emt 0:00:44]} g5 {[%emt 0:02:31]} 29. Be3 {[%emt 0:00:38]} Ke6 {[%emt 0:00:56]} 30. Ke2 {[%emt 0:00:52]} Kd6 {[%emt 0:02:11]} 31. Rd1+ {[%emt 0:01:38]} Kc6 {[%emt 0:00:23]} 32. f4 {[%emt 0:01:54]} h6 {[%emt 0:01:33]} 33. h4 {[%emt 0:01:46]} gxh4 {[%emt 0:00:22]} 34. gxh4 {[%emt 0:00:08]} Bc3 {[%emt 0:01:03]} 35. Rxb5 {[%emt 0:00:32]} Rxb5 {[%emt 0:00:22]} 36. Rc1 {[%emt 0:00:18]} Bb4 {[%emt 0:00:38]} 37. Kd3 {[%emt 0:00:42]} Kd5 {[%emt 0:00:24]} 38. h5 {[%emt 0:01:41]} f5 {[%emt 0:00:23]} 39. Ke2 {[%emt 0:01:06]} a4 {[%emt 0:00:22]} 40. Ra1 {[%emt 0:00:36]} Ra5 {[%emt 0:00:13]} 41. Kd3 {[%emt 0:00:54]} a3 {[%emt 0:00:21]} 42. Ra2 {[%emt 0:02:06]} c4+ {[%emt 0:00:42]} 43. Kc2 {[%emt 0:00:38]} Ke4 {[%emt 0:00:16]} 44. Bb6 {[%emt 0:01:24]} Rd5 {[%emt 0:00:19]} 45. Bc7 {[%emt 0:05:22]} Rd2+ {[%emt 0:00:19]} 46. Kb1 {[%emt 0:00:25]} c3 {[%emt 0:00:43]} 0-1

[Event "HUN-chT Youth 2019"]
[Site "Budapest"]
[Date "2019.10.26"]
[Round "1.40"]
[White "Karacsonyi, Bank"]
[Black "Toth, Rafael"]
[Result "1-0"]
[ECO "B04"]
[WhiteElo "1513"]
[BlackElo "1187"]
[Annotator "NA"]
[PlyCount "71"]
[EventDate "2019.10.26"]
[EventType "team-tourn"]
[EventCountry "HUN"]
[SourceTitle "playchess.com"]
[Source "ChessBase"]
[SourceQuality "1"]
[TimeControl "5400+30"]

1. e4 {[%emt 0:00:00]} Nf6 {[%emt 0:00:00]} 2. e5 {[%emt 0:00:00]} Nd5 {[%emt 0:00:00]} 3. d4 {[%emt 0:00:00]} d6 {[%emt 0:00:00]} 4. c4 {[%emt 0:00:27]} Nb6 {[%emt 0:00:04]} 5. exd6 {[%emt 0:00:42]} cxd6 {[%emt 0:00:17]} 6. Nc3 {[%emt 0:00:44]} Nc6 {[%emt 0:00:55]} 7. Nf3 {[%emt 0:01:59]} g6 {[%emt 0:01:38]} 8. Be2 {[%emt 0:00:57]} Bg7 {[%emt 0:01:07]} 9. Be3 {[%emt 0:01:44]} Bg4 {[%emt 0:02:27]} 10. O-O {[%emt 0:03:44]} O-O {[%emt 0:04:20]} 11. b3 {[%emt 0:03:27]} Rc8 {[%emt 0:03:36]} 12. Rc1 {[%emt 0:01:18]} Re8 {[%emt 0:09:01]} 13. Qd2 {[%emt 0:07:43]} Qd7 {[%emt 0:01:55]} 14. h3 {[%emt 0:00:27]} Bxf3 {[%emt 0:01:38]} 15. Bxf3 {[%emt 0:00:59]} a6 {[%emt 0:05:43]} 16. d5 {[%emt 0:01:22]} Ne5 {[%emt 0:06:31]} 17. Bxb6 {[%emt 0:01:10]} Qxh3 {[%emt 0:03:44]} 18. Qe2 {[%emt 0:05:58]} Nxf3+ {[%emt 0:02:31]} 19. Qxf3 {[%emt 0:00:16]} Qxf3 {[%emt 0:01:14]} 20. gxf3 {[%emt 0:02:11]} f5 {[%emt 0:02:03]} 21. Ne2 {[%emt 0:01:41]} g5 {[%emt 0:01:41]} 22. Bd4 {[%emt 0:01:34]} e5 {[%emt 0:01:43]} 23. dxe6 {[%emt 0:00:49]} Rxe6 {[%emt 0:00:25]} 24. Bxg7 {[%emt 0:02:12]} Rxe2 {[%emt 0:01:18]} 25. Bf6 {[%emt 0:01:01]} Rxa2 {[%emt 0:00:32]} 26. Bxg5 {[%emt 0:00:09]} Kf7 {[%emt 0:01:04]} 27. Kh2 {[%emt 0:00:57]} Rb2 {[%emt 0:01:18]} 28. Rcd1 {[%emt 0:00:24]} h6 {[%emt 0:00:44]} 29. Bf4 {[%emt 0:00:13]} Rxb3 {[%emt 0:01:18]} 30. Rxd6 {[%emt 0:00:51]} Rxf3 {[%emt 0:00:40]} 31. Be3 {[%emt 0:01:57]} Rg8 {[%emt 0:05:51]} 32. Rxh6 {[%emt 0:00:58]} f4 {[%emt 0:01:10]} 33. Bd4 {[%emt 0:00:28]} Rd8 {[%emt 0:02:16]} 34. Bb6 {[%emt 0:00:33]} Rd7 {[%emt 0:01:06]} 35. Rh7+ {[%emt 0:01:09]} Ke8 {[%emt 0:00:37]} 36. Re1+ {[%emt 0:00:06]} 1-0

[Event "HUN-chT Youth 2019"]
[Site "Budapest"]
[Date "2019.10.26"]
[Round "1.41"]
[White "Kiss, Istvan I"]
[Black "Karacsonyi, Luca"]
[Result "0-1"]
[ECO "B70"]
[WhiteElo "2183"]
[BlackElo "1556"]
[Annotator "ChessBase"]
[PlyCount "62"]
[EventDate "2019.10.26"]
[EventType "team-tourn"]
[EventCountry "HUN"]
[SourceTitle "playchess.com"]
[Source "ChessBase"]
[SourceQuality "1"]
[TimeControl "5400+30"]

1. e4 {[%emt 0:00:00]} c5 {[%emt 0:00:00]} 2. Nf3 {[%emt 0:00:00]} d6 {[%emt 0:00:00]} 3. d4 {[%emt 0:00:00]} cxd4 {[%emt 0:00:00]} 4. Nxd4 {[%emt 0:00:00]} Nf6 {[%emt 0:00:04]} 5. Nc3 {[%emt 0:00:05]} g6 {[%emt 0:00:22]} 6. Bb5+ {[%emt 0:00:52]} Bd7 {[%emt 0:00:43]} 7. Bxd7+ {[%emt 0:00:44]} Nbxd7 {[%emt 0:00:07]} 8. O-O {[%emt 0:00:17]} Bg7 {[%emt 0:00:05]} 9. f4 {[%emt 0:00:59]} O-O {[%emt 0:01:28]} 10. f5 {[%emt 0:01:10]} Qb6 {[%emt 0:07:52]} 11. Kh1 {[%emt 0:00:49]} Nxe4 {[%emt 0:01:23]} 12. Nxe4 {[%emt 0:01:33]} Qxd4 {[%emt 0:00:54]} 13. Qxd4 {[%emt 0:00:23]} Bxd4 {[%emt 0:00:05]} 14. c3 {[%emt 0:02:56]} Bg7 {[%emt 0:00:20]} 15. fxg6 {[%emt 0:12:27]} hxg6 {[%emt 0:01:35]} 16. Be3 {[%emt 0:00:44]} f5 {[%emt 0:00:25]} 17. Ng5 {[%emt 0:04:09]} Bh6 {[%emt 0:02:46]} 18. Rfe1 {[%emt 0:01:42]} f4 {[%emt 0:01:57]} 19. Ne6 {[%emt 0:04:55]} fxe3 {[%emt 0:01:51]} 20. Nxf8 {[%emt 0:00:18]} Rxf8 {[%emt 0:00:13]} 21. Re2 {[%emt 0:06:15]} Rf2 {[%emt 0:00:54]} 22. Rxf2 {[%emt 0:00:25]} exf2 {[%emt 0:00:07]} 23. g3 {[%emt 0:00:31]} Bd2 {[%emt 0:00:32]} 24. Rf1 {[%emt 0:01:56]} Be1 {[%emt 0:00:38]} 25. Kg2 {[%emt 0:03:55]} Ne5 {[%emt 0:00:15]} 26. a3 {[%emt 0:07:45]} Nc4 {[%emt 0:00:18]} 27. b3 {[%emt 0:05:12]} Ne3+ {[%emt 0:00:05]} 28. Kf3 {[%emt 0:02:04]} Nxf1 {[%emt 0:00:05]} 29. Ke4 {[%emt 0:00:21]} Nd2+ {[%emt 0:00:05]} 30. Kd5 {[%emt 0:00:27]} f1=Q {[%emt 0:00:09]} 31. Ke6 {[%emt 0:00:23]} Qf5+ {[%emt 0:00:29]} 0-1

[Event "HUN-chT Youth 2019"]
[Site "Budapest"]
[Date "2019.10.26"]
[Round "1.43"]
[White "Konyves, Almos"]
[Black "Kasnya, Peter"]
[Result "1/2-1/2"]
[ECO "B31"]
[WhiteElo "2006"]
[BlackElo "1566"]
[Annotator "NA"]
[PlyCount "88"]
[EventDate "2019.10.26"]
[EventType "team-tourn"]
[EventCountry "HUN"]
[SourceTitle "playchess.com"]
[Source "ChessBase"]
[SourceQuality "1"]
[TimeControl "5400+30"]

1. e4 {[%emt 0:00:00]} c5 {[%emt 0:00:00]} 2. Nf3 {[%emt 0:00:00]} Nc6 {[%emt 0:00:18]} 3. Nc3 {[%emt 0:00:00]} g6 {[%emt 0:00:30]} 4. Bb5 {[%emt 0:00:33]} Bg7 {[%emt 0:02:35]} 5. O-O {[%emt 0:00:38]} d6 {[%emt 0:02:31]} 6. Bxc6+ {[%emt 0:02:12]} bxc6 {[%emt 0:00:07]} 7. d3 {[%emt 0:01:13]} Nf6 {[%emt 0:01:20]} 8. h3 {[%emt 0:01:05]} O-O {[%emt 0:00:35]} 9. Be3 {[%emt 0:04:16]} Rb8 {[%emt 0:01:17]} 10. Qc1 {[%emt 0:00:53]} Qa5 {[%emt 0:02:45]} 11. Nd2 {[%emt 0:03:09]} Qb4 {[%emt 0:02:25]} 12. Nd1 {[%emt 0:02:52]} d5 {[%emt 0:02:05]} 13. c3 {[%emt 0:04:23]} Qb5 {[%emt 0:06:17]} 14. c4 {[%emt 0:01:12]} Qa6 {[%emt 0:05:20]} 15. Bxc5 {[%emt 0:08:58]} Re8 {[%emt 0:00:55]} 16. Qc2 {[%emt 0:10:16]} Be6 {[%emt 0:04:52]} 17. f4 {[%emt 0:10:24]} dxe4 {[%emt 0:01:28]} 18. dxe4 {[%emt 0:00:34]} Nd7 {[%emt 0:02:09]} 19. Bf2 {[%emt 0:01:25]} Nb6 {[%emt 0:00:41]} 20. Bxb6 {[%emt 0:05:23]} Qxb6+ {[%emt 0:00:47]} 21. Kh1 {[%emt 0:00:05]} Red8 {[%emt 0:00:34]} 22. Nb3 {[%emt 0:02:46]} Qb4 {[%emt 0:00:29]} 23. Rc1 {[%emt 0:05:26]} a5 {[%emt 0:00:43]} 24. f5 {[%emt 0:03:55]} Bc8 {[%emt 0:02:43]} 25. Qf2 {[%emt 0:20:57]} a4 {[%emt 0:00:38]} 26. Na1 {[%emt 0:00:47]} Rd2 {[%emt 0:00:48]} 27. Qf3 {[%emt 0:00:46]} g5 {[%emt 0:03:12]} 28. Qe3 {[%emt 0:05:24]} h6 {[%emt 0:00:21]} 29. h4 {[%emt 0:00:32]} Bd4 {[%emt 0:00:26]} 30. Qg3 {[%emt 0:01:04]} f6 {[%emt 0:00:49]} 31. c5 {[%emt 0:01:32]} Be5 {[%emt 0:00:33]} 32. Qf3 {[%emt 0:00:52]} Ba6 {[%emt 0:00:34]} 33. a3 {[%emt 0:00:31]} Qd4 {[%emt 0:00:33]} 34. Re1 {[%emt 0:00:39]} Rd3 {[%emt 0:03:27]} 35. Qh5 {[%emt 0:00:37]} Qd8 {[%emt 0:02:51]} 36. Nf2 {[%emt 0:00:46]} Rg3 {[%emt 0:05:23]} 37. Qg6+ {[%emt 0:01:04]} Kh8 {[%emt 0:00:17]} 38. Qxh6+ {[%emt 0:00:04]} Kg8 {[%emt 0:00:06]} 39. Qg6+ {[%emt 0:00:05]} Kh8 {[%emt 0:00:14]} 40. Qh5+ {[%emt 0:01:01]} Kg7 {[%emt 0:02:25]} 41. Qg6+ {[%emt 0:00:38]} Kh8 {[%emt 0:00:04]} 42. Qh5+ {[%emt 0:00:32]} Kg7 {[%emt 0:00:07]} 43. Qg6+ {[%emt 0:00:38]} Kh8 {[%emt 0:00:16]} 44. Ng4 {[%emt 0:00:30]} Qg8 {[%emt 0:00:32]} 1/2-1/2

[Event "HUN-chT Youth 2019"]
[Site "Budapest"]
[Date "2019.10.26"]
[Round "1.44"]
[White "Toth, Barnabas"]
[Black "Bodrogi, Bendeguz"]
[Result "0-1"]
[ECO "B31"]
[WhiteElo "2057"]
[BlackElo "1903"]
[Annotator "NA"]
[PlyCount "92"]
[EventDate "2019.10.26"]
[EventType "team-tourn"]
[EventCountry "HUN"]
[SourceTitle "playchess.com"]
[Source "ChessBase"]
[SourceQuality "1"]
[TimeControl "5400+30"]

1. e4 {[%emt 0:00:00]} c5 {[%emt 0:00:00]} 2. Nf3 {[%emt 0:00:00]} Nc6 {[%emt 0:00:17]} 3. Bb5 {[%emt 0:00:00]} g6 {[%emt 0:01:03]} 4. Bxc6 {[%emt 0:00:03]} bxc6 {[%emt 0:01:14]} 5. O-O {[%emt 0:00:39]} Bg7 {[%emt 0:00:52]} 6. d3 {[%emt 0:00:35]} Nf6 {[%emt 0:01:30]} 7. h3 {[%emt 0:02:06]} O-O {[%emt 0:00:51]} 8. Nc3 {[%emt 0:00:45]} d5 {[%emt 0:06:15]} 9. Qe2 {[%emt 0:02:48]} e6 {[%emt 0:00:48]} 10. Bg5 {[%emt 0:00:48]} Qb6 {[%emt 0:00:42]} 11. Na4 {[%emt 0:01:58]} Qa5 {[%emt 0:00:57]} 12. b3 {[%emt 0:01:07]} Nd7 {[%emt 0:02:11]} 13. Rad1 {[%emt 0:02:08]} Ba6 {[%emt 0:02:51]} 14. Qd2 {[%emt 0:01:17]} Qxd2 {[%emt 0:06:05]} 15. Nxd2 {[%emt 0:03:12]} Bb5 {[%emt 0:02:29]} 16. Be3 {[%emt 0:09:03]} Bxa4 {[%emt 0:01:02]} 17. bxa4 {[%emt 0:00:48]} f5 {[%emt 0:00:54]} 18. exf5 {[%emt 0:01:40]} gxf5 {[%emt 0:00:45]} 19. Nb3 {[%emt 0:00:51]} c4 {[%emt 0:09:49]} 20. dxc4 {[%emt 0:01:06]} Nb6 {[%emt 0:00:08]} 21. cxd5 {[%emt 0:03:12]} cxd5 {[%emt 0:00:57]} 22. a5 {[%emt 0:00:40]} Nc4 {[%emt 0:00:12]} 23. Bc5 {[%emt 0:04:36]} Rfc8 {[%emt 0:00:14]} 24. Bb4 {[%emt 0:04:27]} Rab8 {[%emt 0:00:38]} 25. a3 {[%emt 0:01:01]} Kf7 {[%emt 0:00:21]} 26. Nd2 {[%emt 0:03:42]} Nxd2 {[%emt 0:01:37]} 27. Rxd2 {[%emt 0:00:37]} Bc3 {[%emt 0:00:10]} 28. Bxc3 {[%emt 0:01:52]} Rxc3 {[%emt 0:00:10]} 29. Re2 {[%emt 0:01:05]} Rb2 {[%emt 0:01:03]} 30. Rfe1 {[%emt 0:00:55]} Rc6 {[%emt 0:00:54]} 31. Kf1 {[%emt 0:08:31]} Kf6 {[%emt 0:00:52]} 32. f4 {[%emt 0:01:28]} h5 {[%emt 0:01:09]} 33. h4 {[%emt 0:00:29]} Rb5 {[%emt 0:00:31]} 34. Re3 {[%emt 0:02:24]} a6 {[%emt 0:08:40]} 35. R1e2 {[%emt 0:01:17]} Rxa5 {[%emt 0:00:38]} 36. Rg3 {[%emt 0:00:44]} Ra4 {[%emt 0:00:23]} 37. Rf2 {[%emt 0:00:34]} Rcc4 {[%emt 0:00:15]} 38. Rgf3 {[%emt 0:00:43]} Rc6 {[%emt 0:04:36]} 39. Rg3 {[%emt 0:00:50]} Rac4 {[%emt 0:01:13]} 40. Rg5 {[%emt 0:00:46]} Rxc2 {[%emt 0:00:36]} 41. Rxh5 {[%emt 0:00:37]} Rc1+ {[%emt 0:01:16]} 42. Ke2 {[%emt 0:00:16]} R6c2+ {[%emt 0:00:18]} 43. Ke3 {[%emt 0:00:29]} d4+ {[%emt 0:03:20]} 44. Kf3 {[%emt 0:00:14]} Rc3+ {[%emt 0:00:16]} 45. Ke2 {[%emt 0:00:22]} Rxa3 {[%emt 0:01:28]} 46. Rg5 {[%emt 0:01:20]} Rc2+ {[%emt 0:00:16]} 0-1

[Event "HUN-chT Youth 2019"]
[Site "Budapest"]
[Date "2019.10.26"]
[Round "1.45"]
[White "Onodi, Miklos"]
[Black "Denes, Mark"]
[Result "1-0"]
[ECO "A48"]
[WhiteElo "1548"]
[BlackElo "1217"]
[Annotator "NA"]
[PlyCount "63"]
[EventDate "2019.10.26"]
[EventType "team-tourn"]
[EventCountry "HUN"]
[SourceTitle "playchess.com"]
[Source "ChessBase"]
[SourceQuality "1"]
[TimeControl "5400+30"]

1. d4 {[%emt 0:00:00]} Nf6 {[%emt 0:01:37]} 2. Bf4 {[%emt 0:00:00]} d6 {[%emt 0:00:40]} 3. e3 {[%emt 0:00:05]} g6 {[%emt 0:00:40]} 4. h3 {[%emt 0:00:44]} Bg7 {[%emt 0:00:11]} 5. Nf3 {[%emt 0:00:11]} O-O {[%emt 0:00:18]} 6. Be2 {[%emt 0:00:19]} Bd7 {[%emt 0:00:07]} 7. O-O {[%emt 0:00:54]} e6 {[%emt 0:02:11]} 8. c4 {[%emt 0:01:07]} Nc6 {[%emt 0:13:19]} 9. Nc3 {[%emt 0:00:44]} Nh5 {[%emt 0:01:26]} 10. Bh2 {[%emt 0:01:45]} Re8 {[%emt 0:04:47]} 11. Nd2 {[%emt 0:05:45]} e5 {[%emt 0:01:04]} 12. d5 {[%emt 0:01:23]} Ne7 {[%emt 0:00:33]} 13. Bxh5 {[%emt 0:00:44]} gxh5 {[%emt 0:02:37]} 14. Qxh5 {[%emt 0:00:16]} Ng6 {[%emt 0:00:49]} 15. Nde4 {[%emt 0:04:10]} c6 {[%emt 0:01:18]} 16. Nxd6 {[%emt 0:01:59]} Qe7 {[%emt 0:00:50]} 17. Nxe8 {[%emt 0:00:34]} Rxe8 {[%emt 0:00:10]} 18. Ne4 {[%emt 0:01:27]} cxd5 {[%emt 0:00:51]} 19. cxd5 {[%emt 0:00:35]} Qb4 {[%emt 0:02:22]} 20. Ng5 {[%emt 0:03:06]} h6 {[%emt 0:00:11]} 21. Nf3 {[%emt 0:00:29]} Qb5 {[%emt 0:04:05]} 22. Rfd1 {[%emt 0:04:14]} e4 {[%emt 0:00:52]} 23. Nd4 {[%emt 0:01:51]} Bxd4 {[%emt 0:04:21]} 24. Rxd4 {[%emt 0:01:45]} Qxb2 {[%emt 0:00:45]} 25. Rdd1 {[%emt 0:01:12]} Kg7 {[%emt 0:00:23]} 26. Rab1 {[%emt 0:01:08]} Qxa2 {[%emt 0:00:16]} 27. Rxb7 {[%emt 0:00:18]} Qa4 {[%emt 0:00:09]} 28. Rdb1 {[%emt 0:02:54]} Rc8 {[%emt 0:03:08]} 29. Be5+ {[%emt 0:01:01]} Kh7 {[%emt 0:00:48]} 30. R1b4 {[%emt 0:00:54]} Rc1+ {[%emt 0:02:15]} 31. Kh2 {[%emt 0:00:26]} Nxe5 {[%emt 0:00:29]} 32. Rxa4 {[%emt 0:01:03]} 1-0

[Event "HUN-chT Youth 2019"]
[Site "Budapest"]
[Date "2019.10.26"]
[Round "1.46"]
[White "Tarsoly, Csanad"]
[Black "Kerekes, Laszlo Fulop"]
[Result "0-1"]
[ECO "C45"]
[WhiteElo "1092"]
[BlackElo "1369"]
[Annotator "NA"]
[PlyCount "36"]
[EventDate "2019.10.26"]
[EventType "team-tourn"]
[EventCountry "HUN"]
[SourceTitle "playchess.com"]
[Source "ChessBase"]
[SourceQuality "1"]
[TimeControl "5400+30"]

1. e4 {[%emt 0:00:00]} e5 {[%emt 0:00:00]} 2. Nf3 {[%emt 0:00:00]} Nc6 {[%emt 0:00:06]} 3. d4 {[%emt 0:00:00]} exd4 {[%emt 0:00:19]} 4. Nxd4 {[%emt 0:00:04]} Nf6 {[%emt 0:00:38]} 5. Nxc6 {[%emt 0:00:18]} bxc6 {[%emt 0:00:21]} 6. Bd3 {[%emt 0:00:35]} Bb4+ {[%emt 0:01:13]} 7. c3 {[%emt 0:02:43]} Bc5 {[%emt 0:00:40]} 8. O-O {[%emt 0:02:30]} d6 {[%emt 0:00:38]} 9. Bg5 {[%emt 0:02:11]} h6 {[%emt 0:01:18]} 10. Bh4 {[%emt 0:03:01]} O-O {[%emt 0:01:23]} 11. Nd2 {[%emt 0:03:50]} Re8 {[%emt 0:01:41]} 12. Re1 {[%emt 0:03:56]} Qe7 {[%emt 0:02:23]} 13. Nb3 {[%emt 0:13:28]} Bb6 {[%emt 0:01:25]} 14. Bxf6 {[%emt 0:03:49]} Qxf6 {[%emt 0:00:54]} 15. Qd2 {[%emt 0:02:42]} Re5 {[%emt 0:03:14]} 16. Nd4 {[%emt 0:06:53]} Rg5 {[%emt 0:02:11]} 17. Nf3 {[%emt 0:02:57]} Qxf3 {[%emt 0:01:49]} 18. Qxg5 {[%emt 0:01:46]} Qxf2+ {[%emt 0:00:28]} 0-1

[Event "HUN-chT Youth 2019"]
[Site "Budapest"]
[Date "2019.10.26"]
[Round "1.49"]
[White "Lauko, Denes"]
[Black "Palczert, Matyas"]
[Result "0-1"]
[ECO "B47"]
[WhiteElo "1464"]
[BlackElo "2009"]
[Annotator "NA"]
[PlyCount "58"]
[EventDate "2019.10.26"]
[EventType "team-tourn"]
[EventCountry "HUN"]
[SourceTitle "playchess.com"]
[Source "ChessBase"]
[SourceQuality "1"]
[TimeControl "5400+30"]

1. e4 {[%emt 0:00:00]} c5 {[%emt 0:00:00]} 2. Nf3 {[%emt 0:00:06]} e6 {[%emt 0:00:06]} 3. d4 {[%emt 0:00:38]} cxd4 {[%emt 0:00:10]} 4. Nxd4 {[%emt 0:00:36]} Nc6 {[%emt 0:00:20]} 5. Nc3 {[%emt 0:00:39]} Qc7 {[%emt 0:00:33]} 6. Bc4 {[%emt 0:02:00]} Nf6 {[%emt 0:03:58]} 7. a3 {[%emt 0:02:49]} Nxd4 {[%emt 0:02:55]} 8. Qxd4 {[%emt 0:03:18]} Bc5 {[%emt 0:01:03]} 9. Qd3 {[%emt 0:02:26]} Ng4 {[%emt 0:04:13]} 10. f3 {[%emt 0:05:07]} Nf2 {[%emt 0:05:10]} 11. Qf1 {[%emt 0:06:39]} Nxh1 {[%emt 0:00:26]} 12. Qxh1 {[%emt 0:00:24]} a6 {[%emt 0:01:19]} 13. Bd2 {[%emt 0:03:12]} Bxa3 {[%emt 0:03:23]} 14. Rxa3 {[%emt 0:03:01]} Qxc4 {[%emt 0:00:18]} 15. Qg1 {[%emt 0:04:16]} b5 {[%emt 0:03:27]} 16. Qb6 {[%emt 0:04:13]} Qc6 {[%emt 0:03:00]} 17. Qd4 {[%emt 0:01:59]} O-O {[%emt 0:00:49]} 18. Kd1 {[%emt 0:03:24]} Bb7 {[%emt 0:02:19]} 19. g4 {[%emt 0:03:34]} Rac8 {[%emt 0:02:02]} 20. h4 {[%emt 0:06:05]} f5 {[%emt 0:02:15]} 21. h5 {[%emt 0:03:25]} Qc4 {[%emt 0:02:10]} 22. Qxd7 {[%emt 0:05:55]} Qf1+ {[%emt 0:00:23]} 23. Be1 {[%emt 0:00:34]} Rcd8 {[%emt 0:00:21]} 24. Qxd8 {[%emt 0:00:59]} Rxd8+ {[%emt 0:00:10]} 25. Nd5 {[%emt 0:00:45]} exd5 {[%emt 0:00:23]} 26. exf5 {[%emt 0:00:27]} d4 {[%emt 0:00:26]} 27. Rd3 {[%emt 0:00:53]} Bxf3+ {[%emt 0:00:13]} 28. Kd2 {[%emt 0:00:21]} Qe2+ {[%emt 0:00:09]} 29. Kc1 {[%emt 0:00:33]} Qxe1+ {[%emt 0:00:09]} 0-1